[Event "ESCC-50 2022"]
[Site "Lublin"]
[Date "2022.07.11"]
[Round "7.4"]
[White "Lasinskas, Povilas"]
[Black "Padrak, Rafal"]
[Result "1-0"]
[ECO "D43"]
[WhiteElo "2096"]
[BlackElo "2125"]
[Annotator "ChessBase"]
[PlyCount "61"]
[EventDate "2022.07.05"]
[EventType "swiss"]
[EventCountry "POL"]
[SourceTitle "playchess.com"]
[Source "ChessBase"]
[SourceQuality "1"]
[TimeControl "40/5400+30:1800+30"]

1. d4 {[%emt 0:01:04]} Nf6 {[%emt 0:00:22]} 2. c4 {[%emt 0:00:05]} e6 {[%emt 0:00:11]} 3. Nc3 {[%emt 0:00:07]} d5 {[%emt 0:00:17]} 4. Nf3 {[%emt 0:00:17]} c6 {[%emt 0:00:32]} 5. Bg5 {[%emt 0:00:10]} Be7 {[%emt 0:00:11]} 6. e3 {[%emt 0:00:08]} O-O {[%emt 0:00:13]} 7. Qc2 {[%emt 0:00:09]} h6 {[%emt 0:00:40]} 8. Bh4 {[%emt 0:00:35]} Nbd7 {[%emt 0:00:11]} 9. Be2 {[%emt 0:00:32]} dxc4 {[%emt 0:04:53]} 10. Bxc4 {[%emt 0:00:14]} a6 {[%emt 0:00:07]} 11. O-O {[%emt 0:05:35]} b5 {[%emt 0:02:17]} 12. Be2 {[%emt 0:00:58]} Bb7 {[%emt 0:04:33]} 13. Rfd1 {[%emt 0:01:31]} Qc7 {[%emt 0:15:03]} 14. e4 {[%emt 0:03:16]} Nb6 {[%emt 0:17:44]} 15. Bxf6 {[%emt 0:12:47]} Bxf6 {[%emt 0:05:20]} 16. e5 {[%emt 0:00:06]} Be7 {[%emt 0:00:04]} 17. Ne4 {[%emt 0:00:11]} Nd7 {[%emt 0:05:11]} 18. Rac1 {[%emt 0:01:17]} Rac8 {[%emt 0:01:09]} 19. Qc3 {[%emt 0:05:14]} b4 {[%emt 0:06:03]} 20. Qe3 {[%emt 0:01:09]} Qa5 {[%emt 0:00:49]} 21. Nc5 {[%emt 0:04:34]} Nxc5 {[%emt 0:04:41]} 22. dxc5 {[%emt 0:01:36]} Rfd8 {[%emt 0:00:18]} 23. Rd6 {[%emt 0:07:07]} Qxa2 {[%emt 0:07:04]} 24. b3 {[%emt 0:07:15]} Qb2 {[%emt 0:02:57]} 25. Bd3 {[%emt 0:03:36]} Bxd6 {[%emt 0:07:20]} 26. exd6 {[%emt 0:01:52]} Qf6 {[%emt 0:01:00]} 27. Ne5 {[%emt 0:00:58]} Ra8 {[%emt 0:00:16]} 28. Rc4 {[%emt 0:01:01]} a5 {[%emt 0:07:54]} 29. Rf4 {[%emt 0:00:22]} Qg5 {[%emt 0:00:26]} 30. h4 {[%emt 0:00:16]} Qh5 {[%emt 0:00:07]} 31. Be2 {[%emt 0:00:09]} 1-0

[Event "ESCC-50 2022"]
[Site "Lublin"]
[Date "2022.07.11"]
[Round "7.5"]
[White "Wielosz, Jaroslaw"]
[Black "Zielinski, Olgierd"]
[Result "1-0"]
[ECO "A04"]
[WhiteElo "1891"]
[BlackElo "1816"]
[Annotator "NA"]
[PlyCount "77"]
[EventDate "2022.07.05"]
[EventType "swiss"]
[EventCountry "POL"]
[SourceTitle "playchess.com"]
[Source "ChessBase"]
[SourceQuality "1"]
[TimeControl "40/5400+30:1800+30"]

1. Nf3 {[%emt 0:00:07]} c5 {[%emt 0:00:23]} 2. c4 {[%emt 0:00:18]} Nc6 {[%emt 0:00:06]} 3. Nc3 {[%emt 0:00:55]} Nd4 {[%emt 0:02:23]} 4. e3 {[%emt 0:02:45]} Nxf3+ {[%emt 0:00:07]} 5. Qxf3 {[%emt 0:00:13]} Nf6 {[%emt 0:00:08]} 6. d4 {[%emt 0:06:45]} d6 {[%emt 0:01:45]} 7. Qd1 {[%emt 0:05:25]} Bd7 {[%emt 0:09:16]} 8. Be2 {[%emt 0:01:53]} g6 {[%emt 0:06:32]} 9. O-O {[%emt 0:00:07]} Bg7 {[%emt 0:00:03]} 10. d5 {[%emt 0:05:42]} Qc7 {[%emt 0:09:07]} 11. e4 {[%emt 0:00:52]} h5 {[%emt 0:01:26]} 12. h3 {[%emt 0:07:57]} h4 {[%emt 0:00:20]} 13. Bg5 {[%emt 0:08:35]} Nh5 {[%emt 0:01:30]} 14. Bg4 {[%emt 0:05:55]} Bf6 {[%emt 0:07:18]} 15. Bxd7+ {[%emt 0:04:03]} Qxd7 {[%emt 0:00:12]} 16. Bxf6 {[%emt 0:00:41]} exf6 {[%emt 0:03:00]} 17. f4 {[%emt 0:10:24]} Ng3 {[%emt 0:03:44]} 18. Rf3 {[%emt 0:01:06]} Rh5 {[%emt 0:11:07]} 19. Re3 {[%emt 0:03:12]} Kf8 {[%emt 0:03:33]} 20. Ne2 {[%emt 0:03:47]} Nxe2+ {[%emt 0:01:26]} 21. Qxe2 {[%emt 0:00:22]} Re8 {[%emt 0:00:07]} 22. Re1 {[%emt 0:02:31]} Re7 {[%emt 0:01:31]} 23. Qc2 {[%emt 0:04:14]} Kg7 {[%emt 0:14:38]} 24. Qc3 {[%emt 0:01:04]} Qe8 {[%emt 0:01:24]} 25. b3 {[%emt 0:05:05]} a6 {[%emt 0:05:54]} 26. a4 {[%emt 0:00:19]} b5 {[%emt 0:03:31]} 27. axb5 {[%emt 0:00:50]} axb5 {[%emt 0:00:06]} 28. R3e2 {[%emt 0:03:48]} bxc4 {[%emt 0:03:43]} 29. bxc4 {[%emt 0:00:11]} Rf5 {[%emt 0:00:29]} 30. Qd2 {[%emt 0:03:27]} Rh5 {[%emt 0:00:03]} 31. Qb2 {[%emt 0:03:04]} Qa4 {[%emt 0:06:38]} 32. e5 {[%emt 0:01:27]} fxe5 {[%emt 0:02:52]} 33. fxe5 {[%emt 0:00:25]} Rhxe5 {[%emt 0:00:52]} 34. Rxe5 {[%emt 0:00:27]} Rxe5 {[%emt 0:00:06]} 35. Rxe5 {[%emt 0:00:24]} dxe5 {[%emt 0:00:12]} 36. Qxe5+ {[%emt 0:00:13]} Kh7 {[%emt 0:00:29]} 37. d6 {[%emt 0:03:21]} Qxc4 {[%emt 0:00:34]} 38. d7 {[%emt 0:00:59]} Qd3 {[%emt 0:01:32]} 39. Qc7 {[%emt 0:00:45]} 1-0

[Event "ESCC-50 2022"]
[Site "Lublin"]
[Date "2022.07.11"]
[Round "7.6"]
[White "Baliuniene, Margarita"]
[Black "Pietinen, Pekka"]
[Result "1-0"]
[ECO "A41"]
[WhiteElo "1935"]
[BlackElo "1937"]
[Annotator "ChessBase"]
[PlyCount "47"]
[EventDate "2022.07.05"]
[EventType "swiss"]
[EventCountry "POL"]
[SourceTitle "playchess.com"]
[Source "ChessBase"]
[SourceQuality "1"]
[TimeControl "40/5400+30:1800+30"]

1. d4 {[%emt 0:00:04]} d6 {[%emt 0:00:45]} 2. Nf3 {[%emt 0:00:13]} g6 {[%emt 0:01:28]} 3. g3 {[%emt 0:00:22]} b6 {[%emt 0:01:58]} 4. Bg2 {[%emt 0:00:13]} Bb7 {[%emt 0:00:08]} 5. c4 {[%emt 0:01:40]} Nd7 {[%emt 0:02:18]} 6. Nc3 {[%emt 0:01:08]} Bg7 {[%emt 0:00:32]} 7. e4 {[%emt 0:00:30]} e6 {[%emt 0:01:39]} 8. O-O {[%emt 0:00:41]} Ne7 {[%emt 0:00:28]} 9. Be3 {[%emt 0:03:27]} O-O {[%emt 0:04:02]} 10. Rc1 {[%emt 0:02:37]} h6 {[%emt 0:01:55]} 11. Qd2 {[%emt 0:04:31]} Kh7 {[%emt 0:02:44]} 12. b4 {[%emt 0:00:26]} Rb8 {[%emt 0:05:24]} 13. d5 {[%emt 0:05:46]} exd5 {[%emt 0:06:23]} 14. cxd5 {[%emt 0:01:40]} f5 {[%emt 0:01:47]} 15. Nd4 {[%emt 0:01:35]} Bxd4 {[%emt 0:00:59]} 16. Bxd4 {[%emt 0:01:21]} fxe4 {[%emt 0:00:21]} 17. Bxe4 {[%emt 0:01:33]} Nf6 {[%emt 0:03:54]} 18. Bxf6 {[%emt 0:01:44]} Rxf6 {[%emt 0:00:08]} 19. Nb5 {[%emt 0:00:21]} Ba6 {[%emt 0:01:41]} 20. a4 {[%emt 0:03:57]} Bxb5 {[%emt 0:04:11]} 21. axb5 {[%emt 0:00:02]} Qd7 {[%emt 0:00:15]} 22. Qc3 {[%emt 0:00:56]} Rf7 {[%emt 0:01:08]} 23. Qxc7 {[%emt 0:00:31]} Ng8 {[%emt 0:01:03]} 24. Qxb8 {[%emt 0:01:06]} 1-0

[Event "ESCC-50 2022"]
[Site "Lublin"]
[Date "2022.07.11"]
[Round "7.7"]
[White "Leszner, Liliana"]
[Black "Puroila, Sippo"]
[Result "1-0"]
[ECO "C47"]
[WhiteElo "1872"]
[BlackElo "1803"]
[Annotator "NA"]
[PlyCount "105"]
[EventDate "2022.07.05"]
[EventType "swiss"]
[EventCountry "POL"]
[SourceTitle "playchess.com"]
[Source "ChessBase"]
[SourceQuality "1"]
[TimeControl "40/5400+30:1800+30"]

1. e4 {[%emt 0:00:02]} e5 {[%emt 0:00:07]} 2. Nf3 {[%emt 0:00:29]} Nf6 {[%emt 0:00:08]} 3. Nc3 {[%emt 0:00:23]} Nc6 {[%emt 0:00:09]} 4. Bc4 {[%emt 0:00:40]} h6 {[%emt 0:01:10]} 5. O-O {[%emt 0:00:28]} d6 {[%emt 0:00:42]} 6. h3 {[%emt 0:01:11]} Be7 {[%emt 0:01:27]} 7. d4 {[%emt 0:00:55]} exd4 {[%emt 0:00:39]} 8. Nxd4 {[%emt 0:00:05]} Ne5 {[%emt 0:00:16]} 9. Bb3 {[%emt 0:00:25]} c5 {[%emt 0:01:59]} 10. Nf5 {[%emt 0:01:52]} Bxf5 {[%emt 0:02:28]} 11. exf5 {[%emt 0:00:05]} O-O {[%emt 0:00:13]} 12. f4 {[%emt 0:02:15]} Nc6 {[%emt 0:00:03]} 13. Nd5 {[%emt 0:02:06]} Nd4 {[%emt 0:01:13]} 14. Nxf6+ {[%emt 0:17:50]} Bxf6 {[%emt 0:00:10]} 15. Bd5 {[%emt 0:00:29]} Nxf5 {[%emt 0:01:12]} 16. c3 {[%emt 0:08:05]} Rb8 {[%emt 0:04:20]} 17. g4 {[%emt 0:03:13]} Ne7 {[%emt 0:00:03]} 18. g5 {[%emt 0:06:00]} Nxd5 {[%emt 0:00:21]} 19. Qxd5 {[%emt 0:00:04]} hxg5 {[%emt 0:00:31]} 20. fxg5 {[%emt 0:00:20]} Be5 {[%emt 0:01:03]} 21. Bf4 {[%emt 0:02:24]} g6 {[%emt 0:07:11]} 22. Rae1 {[%emt 0:05:05]} b6 {[%emt 0:04:39]} 23. h4 {[%emt 0:05:06]} Qd7 {[%emt 0:04:31]} 24. Bxe5 {[%emt 0:09:14]} Qg4+ {[%emt 0:00:20]} 25. Qg2 {[%emt 0:00:37]} Qxg2+ {[%emt 0:00:16]} 26. Kxg2 {[%emt 0:00:15]} dxe5 {[%emt 0:00:06]} 27. Rxe5 {[%emt 0:00:03]} Rb7 {[%emt 0:01:39]} 28. Rd1 {[%emt 0:02:14]} Kg7 {[%emt 0:00:33]} 29. Rd6 {[%emt 0:00:23]} Rc8 {[%emt 0:00:15]} 30. Kf3 {[%emt 0:01:09]} Rh8 {[%emt 0:00:36]} 31. Re4 {[%emt 0:01:50]} Rc7 {[%emt 0:00:16]} 32. Ke3 {[%emt 0:01:01]} Rb8 {[%emt 0:00:36]} 33. b3 {[%emt 0:01:40]} Rbb7 {[%emt 0:00:51]} 34. Kd3 {[%emt 0:02:15]} Rd7 {[%emt 0:06:50]} 35. Rxd7 {[%emt 0:00:09]} Rxd7+ {[%emt 0:00:11]} 36. Kc4 {[%emt 0:00:09]} f5 {[%emt 0:00:10]} 37. gxf6+ {[%emt 0:02:07]} Kxf6 {[%emt 0:00:02]} 38. Rf4+ {[%emt 0:00:20]} Ke5 {[%emt 0:00:08]} 39. Rg4 {[%emt 0:00:36]} Kf5 {[%emt 0:00:09]} 40. Rg5+ {[%emt 0:00:00]} Kf6 {[%emt 0:00:00]} 41. Kb5 {[%emt 0:03:00]} Rh7 {[%emt 0:00:06]} 42. Rg4 {[%emt 0:00:09]} Kf5 {[%emt 0:00:15]} 43. Rc4 {[%emt 0:00:36]} Kf6 {[%emt 0:04:44]} 44. a4 {[%emt 0:00:34]} Rb7 {[%emt 0:06:43]} 45. Kc6 {[%emt 0:01:00]} Re7 {[%emt 0:00:03]} 46. a5 {[%emt 0:05:17]} Ke5 {[%emt 0:17:33]} 47. axb6 {[%emt 0:01:51]} Re6+ {[%emt 0:00:09]} 48. Kxc5 {[%emt 0:00:22]} Rxb6 {[%emt 0:00:20]} 49. b4 {[%emt 0:01:45]} Rb8 {[%emt 0:03:21]} 50. b5 {[%emt 0:02:08]} Rc8+ {[%emt 0:02:08]} 51. Kb4 {[%emt 0:00:16]} Rxc4+ {[%emt 0:00:10]} 52. Kxc4 {[%emt 0:00:01]} Kf4 {[%emt 0:00:12]} 53. Kd5 {[%emt 0:00:17]} 1-0

[Event "ESCC-50 2022"]
[Site "Lublin"]
[Date "2022.07.11"]
[Round "7.8"]
[White "Babijczuk, Wojciech"]
[Black "Kirszenberg, Marc"]
[Result "0-1"]
[ECO "B18"]
[WhiteElo "1436"]
[BlackElo "2056"]
[Annotator "ChessBase"]
[PlyCount "58"]
[EventDate "2022.07.05"]
[EventType "swiss"]
[EventCountry "POL"]
[SourceTitle "playchess.com"]
[Source "ChessBase"]
[SourceQuality "1"]
[TimeControl "40/5400+30:1800+30"]

1. e4 {[%emt 0:00:01]} c6 {[%emt 0:00:03]} 2. d4 {[%emt 0:00:09]} d5 {[%emt 0:00:04]} 3. Nc3 {[%emt 0:00:14]} dxe4 {[%emt 0:00:06]} 4. Nxe4 {[%emt 0:00:11]} Bf5 {[%emt 0:00:04]} 5. Ng3 {[%emt 0:00:48]} Bg6 {[%emt 0:00:04]} 6. h4 {[%emt 0:00:20]} h6 {[%emt 0:00:05]} 7. h5 {[%emt 0:00:12]} Bh7 {[%emt 0:00:05]} 8. Nf3 {[%emt 0:00:11]} Nd7 {[%emt 0:00:35]} 9. Bd3 {[%emt 0:00:23]} Bxd3 {[%emt 0:00:05]} 10. Qxd3 {[%emt 0:00:13]} e6 {[%emt 0:00:08]} 11. O-O {[%emt 0:00:45]} Ngf6 {[%emt 0:00:15]} 12. Re1 {[%emt 0:02:38]} Be7 {[%emt 0:02:24]} 13. Bf4 {[%emt 0:01:33]} O-O {[%emt 0:00:11]} 14. Rad1 {[%emt 0:03:14]} c5 {[%emt 0:04:24]} 15. c3 {[%emt 0:07:32]} cxd4 {[%emt 0:00:53]} 16. cxd4 {[%emt 0:01:26]} Nb6 {[%emt 0:03:58]} 17. Ne5 {[%emt 0:07:14]} Nbd5 {[%emt 0:01:01]} 18. Bc1 {[%emt 0:04:50]} Nb4 {[%emt 0:02:57]} 19. Qe2 {[%emt 0:05:46]} Nxa2 {[%emt 0:05:23]} 20. Ng6 {[%emt 0:00:29]} Nxc1 {[%emt 0:02:51]} 21. Rxc1 {[%emt 0:00:18]} Re8 {[%emt 0:02:07]} 22. Nxe7+ {[%emt 0:00:14]} Rxe7 {[%emt 0:01:14]} 23. Rcd1 {[%emt 0:09:26]} Rd7 {[%emt 0:01:08]} 24. Qf3 {[%emt 0:07:23]} Rc8 {[%emt 0:01:02]} 25. b3 {[%emt 0:02:59]} Rd5 {[%emt 0:07:18]} 26. Re2 {[%emt 0:08:27]} Rxd4 {[%emt 0:03:37]} 27. Rxd4 {[%emt 0:00:10]} Rc1+ {[%emt 0:04:15]} 28. Kh2 {[%emt 0:04:50]} Qxd4 {[%emt 0:00:15]} 29. Qxb7 {[%emt 0:00:32]} Qh4# {[%emt 0:00:54]} 0-1

[Event "ESCC-50 2022"]
[Site "Lublin"]
[Date "2022.07.11"]
[Round "7.9"]
[White "Chwalewski, Marek"]
[Black "Krzyzanowska-Zadlo, Lidia"]
[Result "1-0"]
[ECO "D02"]
[WhiteElo "1774"]
[BlackElo "1732"]
[Annotator "NA"]
[PlyCount "133"]
[EventDate "2022.07.05"]
[EventType "swiss"]
[EventCountry "POL"]
[SourceTitle "playchess.com"]
[Source "ChessBase"]
[SourceQuality "1"]
[TimeControl "40/5400+30:1800+30"]

1. Nf3 {[%emt 0:05:07]} d5 {[%emt 0:00:06]} 2. d4 {[%emt 0:03:52]} Nf6 {[%emt 0:01:55]} 3. g3 {[%emt 0:01:26]} Bf5 {[%emt 0:02:29]} 4. Bg2 {[%emt 0:00:25]} e6 {[%emt 0:00:34]} 5. Bg5 {[%emt 0:00:46]} Nbd7 {[%emt 0:03:22]} 6. O-O {[%emt 0:01:14]} h6 {[%emt 0:08:26]} 7. Bxf6 {[%emt 0:00:40]} Qxf6 {[%emt 0:00:55]} 8. c3 {[%emt 0:00:46]} Bd6 {[%emt 0:03:23]} 9. Nbd2 {[%emt 0:00:20]} O-O {[%emt 0:00:30]} 10. Ne1 {[%emt 0:01:22]} Qg6 {[%emt 0:10:42]} 11. c4 {[%emt 0:03:01]} c6 {[%emt 0:00:34]} 12. c5 {[%emt 0:00:50]} Bc7 {[%emt 0:01:28]} 13. Ndf3 {[%emt 0:01:13]} e5 {[%emt 0:04:08]} 14. Nh4 {[%emt 0:00:26]} Qf6 {[%emt 0:00:51]} 15. Nxf5 {[%emt 0:00:08]} Qxf5 {[%emt 0:00:10]} 16. e3 {[%emt 0:01:07]} exd4 {[%emt 0:10:36]} 17. exd4 {[%emt 0:03:19]} Rfe8 {[%emt 0:01:13]} 18. Qd3 {[%emt 0:02:42]} Qxd3 {[%emt 0:05:00]} 19. Nxd3 {[%emt 0:00:10]} Re2 {[%emt 0:00:12]} 20. b4 {[%emt 0:05:40]} Rd2 {[%emt 0:06:54]} 21. Rfd1 {[%emt 0:01:57]} Rxd1+ {[%emt 0:00:34]} 22. Rxd1 {[%emt 0:00:06]} a6 {[%emt 0:00:48]} 23. a4 {[%emt 0:02:29]} Kf8 {[%emt 0:00:45]} 24. Bh3 {[%emt 0:02:03]} Nf6 {[%emt 0:02:36]} 25. f3 {[%emt 0:00:07]} g6 {[%emt 0:08:15]} 26. Kf2 {[%emt 0:01:09]} Nh5 {[%emt 0:03:13]} 27. Rb1 {[%emt 0:01:48]} Ke7 {[%emt 0:09:59]} 28. Rb2 {[%emt 0:01:19]} Ng7 {[%emt 0:00:44]} 29. b5 {[%emt 0:02:32]} axb5 {[%emt 0:01:04]} 30. axb5 {[%emt 0:00:07]} Ne6 {[%emt 0:02:07]} 31. Re2 {[%emt 0:06:47]} Ra4 {[%emt 0:00:47]} 32. Bxe6 {[%emt 0:00:45]} fxe6 {[%emt 0:00:11]} 33. b6 {[%emt 0:00:42]} Bb8 {[%emt 0:00:42]} 34. Ke3 {[%emt 0:00:22]} g5 {[%emt 0:02:14]} 35. f4 {[%emt 0:00:15]} Ra3 {[%emt 0:01:17]} 36. Rf2 {[%emt 0:02:02]} gxf4+ {[%emt 0:00:18]} 37. gxf4 {[%emt 0:00:10]} Kf6 {[%emt 0:00:15]} 38. h4 {[%emt 0:11:28]} Kf5 {[%emt 0:01:06]} 39. h5 {[%emt 0:00:36]} Kg4 {[%emt 0:03:42]} 40. Rg2+ {[%emt 0:00:00]} Kf5 {[%emt 0:00:00]} 41. Rf2 {[%emt 0:05:47]} Kg4 {[%emt 0:00:51]} 42. Rf1 {[%emt 0:00:10]} Kf5 {[%emt 0:00:49]} 43. Rf2 {[%emt 0:04:15]} Kg4 {[%emt 0:00:20]} 44. Rg2+ {[%emt 0:00:42]} Kf5 {[%emt 0:00:08]} 45. Rg7 {[%emt 0:00:15]} Bxf4+ {[%emt 0:00:56]} 46. Ke2 {[%emt 0:00:17]} Ke4 {[%emt 0:05:52]} 47. Nxf4 {[%emt 0:00:14]} Kxf4 {[%emt 0:00:46]} 48. Rxb7 {[%emt 0:00:36]} Ke4 {[%emt 0:00:59]} 49. Ra7 {[%emt 0:02:32]} Rb3 {[%emt 0:00:34]} 50. Ra4 {[%emt 0:00:15]} Rb2+ {[%emt 0:00:35]} 51. Kd1 {[%emt 0:00:18]} Kd3 {[%emt 0:00:14]} 52. Kc1 {[%emt 0:00:08]} Rb3 {[%emt 0:00:56]} 53. Ra2 {[%emt 0:03:25]} Kxd4 {[%emt 0:05:23]} 54. Rb2 {[%emt 0:00:15]} Rg3 {[%emt 0:04:04]} 55. b7 {[%emt 0:00:19]} Rg1+ {[%emt 0:00:13]} 56. Kc2 {[%emt 0:00:11]} Rg2+ {[%emt 0:00:20]} 57. Kb1 {[%emt 0:00:07]} Rg1+ {[%emt 0:00:48]} 58. Ka2 {[%emt 0:00:15]} Rg8 {[%emt 0:00:12]} 59. b8=Q {[%emt 0:00:11]} Rxb8 {[%emt 0:00:12]} 60. Rxb8 {[%emt 0:00:12]} e5 {[%emt 0:01:35]} 61. Kb2 {[%emt 0:00:17]} e4 {[%emt 0:01:49]} 62. Kc2 {[%emt 0:00:16]} Kxc5 {[%emt 0:00:18]} 63. Rh8 {[%emt 0:00:10]} d4 {[%emt 0:00:14]} 64. Rxh6 {[%emt 0:00:09]} Kd5 {[%emt 0:01:02]} 65. Rh8 {[%emt 0:00:19]} c5 {[%emt 0:00:15]} 66. Rd8+ {[%emt 0:00:26]} Ke5 {[%emt 0:02:11]} 67. h6 {[%emt 0:00:08]} 1-0

[Event "ESCC-50 2022"]
[Site "Lublin"]
[Date "2022.07.11"]
[Round "7.10"]
[White "Warnk, Torsten"]
[Black "Chlewinski, Artur"]
[Result "1-0"]
[ECO "A48"]
[WhiteElo "1763"]
[BlackElo "1417"]
[Annotator "NA"]
[PlyCount "57"]
[EventDate "2022.07.05"]
[EventType "swiss"]
[EventCountry "POL"]
[SourceTitle "playchess.com"]
[Source "ChessBase"]
[SourceQuality "1"]
[TimeControl "40/5400+30:1800+30"]

1. d4 {[%emt 0:09:17]} Nf6 {[%emt 0:00:50]} 2. Nf3 {[%emt 0:00:13]} g6 {[%emt 0:01:18]} 3. Bf4 {[%emt 0:00:07]} Bg7 {[%emt 0:00:12]} 4. c4 {[%emt 0:00:07]} d6 {[%emt 0:00:40]} 5. Nc3 {[%emt 0:00:15]} O-O {[%emt 0:02:16]} 6. e3 {[%emt 0:03:42]} b6 {[%emt 0:01:10]} 7. Be2 {[%emt 0:00:28]} Bb7 {[%emt 0:00:05]} 8. O-O {[%emt 0:00:31]} Nbd7 {[%emt 0:00:45]} 9. Rc1 {[%emt 0:01:43]} c5 {[%emt 0:04:55]} 10. d5 {[%emt 0:02:20]} Ng4 {[%emt 0:05:36]} 11. Nd2 {[%emt 0:07:22]} Nge5 {[%emt 0:02:33]} 12. Bg3 {[%emt 0:00:31]} f5 {[%emt 0:01:09]} 13. f4 {[%emt 0:05:27]} Nf7 {[%emt 0:00:06]} 14. Qc2 {[%emt 0:05:05]} a6 {[%emt 0:04:02]} 15. e4 {[%emt 0:03:05]} Nh6 {[%emt 0:03:45]} 16. Rce1 {[%emt 0:07:02]} Bc8 {[%emt 0:12:31]} 17. Bd3 {[%emt 0:03:03]} Bd4+ 18. Kh1 {[%emt 0:00:57]} Nf6 {[%emt 0:10:00]} 19. Ne2 {[%emt 0:05:27]} Nh5 {[%emt 0:00:34]} 20. Nxd4 {[%emt 0:03:20]} Nxg3+ {[%emt 0:00:24]} 21. hxg3 {[%emt 0:00:07]} cxd4 {[%emt 0:00:11]} 22. Nf3 {[%emt 0:00:49]} Ng4 {[%emt 0:03:09]} 23. Nxd4 {[%emt 0:01:22]} Rf6 {[%emt 0:03:23]} 24. Be2 {[%emt 0:02:50]} Ne3 {[%emt 0:00:10]} 25. Qd3 {[%emt 0:01:03]} Nxf1 {[%emt 0:00:31]} 26. Bxf1 {[%emt 0:00:16]} e5 {[%emt 0:04:55]} 27. dxe6 {[%emt 0:00:37]} Bxe6 {[%emt 0:00:24]} 28. Nxe6 {[%emt 0:01:12]} Rxe6 {[%emt 0:00:17]} 29. Qd5 1-0

[Event "ESCC-50 2022"]
[Site "Lublin"]
[Date "2022.07.12"]
[Round "8.1"]
[White "Tereladze, Sopiko"]
[Black "Mrva, Martin"]
[Result "0-1"]
[ECO "B40"]
[WhiteElo "2141"]
[BlackElo "2385"]
[Annotator "ChessBase"]
[PlyCount "106"]
[EventDate "2022.07.05"]
[EventType "swiss"]
[EventCountry "POL"]
[SourceTitle "playchess.com"]
[Source "ChessBase"]
[SourceQuality "1"]
[TimeControl "40/5400+30:1800+30"]

1. e4 {[%emt 0:00:08]} c5 {[%emt 0:00:08]} 2. Nf3 {[%emt 0:00:07]} e6 {[%emt 0:01:10]} 3. g3 {[%emt 0:00:22]} Nc6 {[%emt 0:00:09]} 4. Bg2 {[%emt 0:00:04]} Nf6 {[%emt 0:00:09]} 5. Nc3 {[%emt 0:00:15]} d6 {[%emt 0:01:07]} 6. d4 {[%emt 0:00:40]} cxd4 {[%emt 0:00:25]} 7. Nxd4 {[%emt 0:00:01]} Bd7 {[%emt 0:00:33]} 8. O-O {[%emt 0:01:19]} Be7 {[%emt 0:00:28]} 9. b3 {[%emt 0:00:48]} O-O {[%emt 0:10:16]} 10. Bb2 {[%emt 0:07:14]} Qb6 {[%emt 0:13:16]} 11. Nxc6 {[%emt 0:10:27]} Bxc6 {[%emt 0:01:56]} 12. Qe2 {[%emt 0:02:53]} Rac8 {[%emt 0:04:45]} 13. Rad1 {[%emt 0:03:23]} Rfe8 {[%emt 0:03:07]} 14. Rfe1 {[%emt 0:16:17]} a6 {[%emt 0:09:34]} 15. Qe3 {[%emt 0:23:35]} Qa5 {[%emt 0:03:18]} 16. a3 {[%emt 0:01:29]} Qc7 {[%emt 0:05:18]} 17. Qd4 {[%emt 0:08:37]} b5 {[%emt 0:03:07]} 18. h3 {[%emt 0:03:01]} Qb7 {[%emt 0:03:21]} 19. Re2 {[%emt 0:04:53]} a5 {[%emt 0:03:32]} 20. Rde1 {[%emt 0:01:12]} Rc7 {[%emt 0:06:57]} 21. Kh2 {[%emt 0:01:07]} b4 {[%emt 0:03:13]} 22. axb4 {[%emt 0:00:13]} axb4 {[%emt 0:00:08]} 23. Na2 {[%emt 0:01:43]} d5 {[%emt 0:02:04]} 24. exd5 {[%emt 0:02:07]} Bxd5 {[%emt 0:00:09]} 25. Bxd5 {[%emt 0:00:44]} Qxd5 {[%emt 0:00:14]} 26. Qf4 {[%emt 0:00:53]} Qa5 {[%emt 0:01:25]} 27. Nc1 {[%emt 0:02:57]} Rec8 {[%emt 0:01:20]} 28. Nd3 {[%emt 0:02:53]} h6 {[%emt 0:00:38]} 29. Rc1 {[%emt 0:01:45]} Qh5 {[%emt 0:01:48]} 30. g4 {[%emt 0:00:56]} Qg5 {[%emt 0:03:11]} 31. Qxg5 {[%emt 0:01:51]} hxg5 {[%emt 0:00:07]} 32. Be5 {[%emt 0:01:31]} Rc6 {[%emt 0:00:22]} 33. Kg2 {[%emt 0:00:47]} Nd5 {[%emt 0:00:14]} 34. Kf3 {[%emt 0:00:17]} f6 {[%emt 0:00:37]} 35. Bb2 {[%emt 0:00:03]} Kf7 {[%emt 0:00:10]} 36. Ba1 Ra8 {[%emt 0:01:24]} 37. Bd4 {[%emt 0:00:42]} Ra2 {[%emt 0:00:43]} 38. Kg2 {[%emt 0:00:01]} Bd6 {[%emt 0:00:40]} 39. Kf1 {[%emt 0:01:04]} Ra8 {[%emt 0:07:34]} 40. Ra1 {[%emt 0:00:00]} Rxa1+ {[%emt 0:00:00]} 41. Bxa1 {[%emt 0:03:40]} e5 {[%emt 0:02:29]} 42. Bb2 {[%emt 0:02:29]} Ra6 {[%emt 0:00:39]} 43. f3 {[%emt 0:02:09]} Ra2 {[%emt 0:01:14]} 44. Ke1 {[%emt 0:01:00]} Ra8 {[%emt 0:01:32]} 45. Kf1 {[%emt 0:01:18]} Ke6 {[%emt 0:02:26]} 46. Kf2 {[%emt 0:00:56]} Rc8 {[%emt 0:01:22]} 47. Rd2 {[%emt 0:00:50]} Bb8 {[%emt 0:00:42]} 48. Re2 {[%emt 0:02:22]} Ba7+ {[%emt 0:00:31]} 49. Kg3 {[%emt 0:01:30]} Be3 {[%emt 0:05:21]} 50. Bc1 {[%emt 0:05:35]} Nf4 {[%emt 0:04:42]} 51. Rxe3 {[%emt 0:01:10]} Rxc2 {[%emt 0:00:12]} 52. Ne1 {[%emt 0:01:12]} Rxc1 {[%emt 0:00:38]} 53. h4 {[%emt 0:00:23]} gxh4+ {[%emt 0:00:16]} 0-1